bitfinex/quotes_BTCUSD_20250608
["timestamp","ask_amount","ask_price","bid_price","bid_amount"]
[1749371936595,0.59147061,105540.0,105530.0,0.38926015]
[1749371937068,0.59147061,105540.0,105530.0,0.38259948]
[1749371937276,0.59147061,105540.0,105530.0,0.38925988]
[1749371937721,0.59147061,105540.0,105530.0,0.38259948]
[1749371938434,0.59147061,105540.0,105530.0,0.38925988]
[1749371938643,0.59147061,105540.0,105530.0,0.38259948]
[1749371939091,0.59147061,105540.0,105530.0,0.38925988]
[1749371939555,0.59147061,105540.0,105530.0,0.38259948]
[1749371939989,0.59147061,105540.0,105530.0,0.38925988]
[1749371940878,0.59147061,105540.0,105530.0,0.38259948]
[1749371941091,0.59147061,105540.0,105530.0,0.38925988]
[1749371941516,0.59147061,105540.0,105530.0,0.38259948]
[1749371941735,0.59147061,105540.0,105530.0,0.38925988]
[1749371941970,0.59147061,105540.0,105530.0,0.38259948]
[1749371942183,0.59147061,105540.0,105530.0,0.38925988]
[1749371942397,0.59147061,105540.0,105530.0,0.38259948]
[1749371943076,0.59147061,105540.0,105530.0,0.38926573]
[1749371943303,0.59147061,105540.0,105530.0,0.39147122]
[1749371943726,0.59147061,105540.0,105530.0,0.39812502]
[1749371944150,0.59147061,105540.0,105530.0,0.39147122]
[1749371944381,0.59147061,105540.0,105530.0,0.38259948]
[1749371944789,0.59147061,105540.0,105530.0,0.39147122]
[1749371945002,0.59147061,105540.0,105530.0,0.38259948]
[1749371945209,0.59147061,105540.0,105530.0,0.38925328]
[1749371945411,0.59161278,105540.0,105530.0,0.38259948]
[1749371945868,0.59161278,105540.0,105530.0,0.39812502]
[1749371946072,0.59161278,105540.0,105530.0,0.38259948]
[1749371946497,0.59147061,105540.0,105530.0,0.38245731]
[1749371946910,0.59147061,105540.0,105530.0,0.39798285]
[1749371947115,0.59147061,105540.0,105530.0,0.38245731]
[1749371947519,0.59147061,105540.0,105530.0,0.38911111]
[1749371947727,0.59147061,105540.0,105530.0,0.39132905]
[1749371947926,0.59147061,105540.0,105530.0,0.38245731]
[1749371948165,0.59147061,105540.0,105530.0,0.38911111]
[1749371948380,0.59147061,105540.0,105530.0,0.39132905]
[1749371948596,0.59147061,105540.0,105530.0,0.38911111]
[1749371948822,0.59147061,105540.0,105530.0,0.38245731]
[1749371949047,0.59147061,105540.0,105530.0,0.3913254]
[1749371949272,0.55897061,105540.0,105530.0,0.38910838]
[1749371949545,0.55897061,105540.0,105530.0,0.38245731]
[1749371949772,0.55897061,105540.0,105530.0,0.38910791]
[1749371950212,0.55897061,105540.0,105530.0,0.38245731]
[1749371950698,0.55897061,105540.0,105530.0,0.38910791]
[1749371951151,0.55897061,105540.0,105530.0,0.38910797]
[1749371951381,0.55897061,105540.0,105530.0,0.61347884]
[1749371951631,0.56844551,105540.0,105530.0,0.61365284]
[1749371951859,0.56844551,105540.0,105530.0,0.62977921]
[1749371952099,0.56844551,105540.0,105530.0,0.62312872]
[1749371952332,0.56844551,105540.0,105530.0,0.6297792]
[1749371952564,0.56844551,105540.0,105530.0,0.6392549]
[1749371953483,0.56844551,105540.0,105530.0,0.64873051]
[1749371953692,0.56844551,105540.0,105530.0,0.64873488]
[1749371953896,0.56844551,105540.0,105530.0,0.64208003]
[1749371954103,0.56844551,105540.0,105530.0,0.64873488]
[1749371954753,0.56844551,105540.0,105530.0,0.64208003]
[1749371954977,0.56844551,105540.0,105530.0,0.64873488]
[1749371956075,0.56844551,105540.0,105530.0,0.64208003]
[1749371956746,0.56844551,105540.0,105530.0,0.64873488]
[1749371956969,0.56844551,105540.0,105530.0,0.64208003]
[1749371957448,0.53997651,105540.0,105530.0,0.65155555]
[1749371957636,0.53997651,105540.0,105530.0,0.65821152]
[1749371957889,0.53997651,105540.0,105530.0,0.65821137]
[1749371958358,0.53997651,105540.0,105530.0,0.65155555]
[1749371958536,0.53997651,105540.0,105530.0,0.65821135]
[1749371958970,0.53997651,105540.0,105530.0,0.65821081]
[1749371959220,0.36942452,105540.0,105530.0,0.65821081]
[1749371959430,0.3788996,105540.0,105530.0,0.65821081]
[1749371959642,0.3788996,105540.0,105530.0,0.65155501]
[1749371960056,0.3788996,105540.0,105530.0,0.65821081]
[1749371960276,0.3788996,105540.0,105530.0,0.65155501]
[1749371960489,0.3788996,105540.0,105530.0,0.65821081]
[1749371961123,0.3788996,105540.0,105530.0,0.65155501]
[1749371961342,0.56840121,105540.0,105530.0,0.65155501]
[1749371961553,0.3788996,105540.0,105530.0,0.65821027]
[1749371962005,0.3788996,105540.0,105530.0,0.65155447]
[1749371962220,0.3788996,105540.0,105530.0,0.65821027]
[1749371962410,0.36942452,105540.0,105530.0,0.65821027]
[1749371963510,0.36942452,105540.0,105530.0,0.65821024]
[1749371963939,0.36942452,105540.0,105530.0,0.65155447]
[1749371964349,0.35994953,105540.0,105530.0,0.65820804]
[1749371964548,0.35994953,105540.0,105530.0,0.65820792]
[1749371965036,0.35994953,105540.0,105530.0,0.65155447]
[1749371965789,0.35994953,105540.0,105530.0,0.65820792]
[1749371965995,0.35994953,105540.0,105530.0,0.65155447]
[1749371966167,0.35994953,105540.0,105530.0,0.65820792]
[1749371967563,0.35994953,105540.0,105530.0,0.65155447]
[1749371968040,0.35994953,105540.0,105530.0,0.65820791]
[1749371968170,0.35994953,105540.0,105530.0,0.65155447]
[1749371968377,0.35994953,105540.0,105530.0,0.65820791]
[1749371968600,0.35994953,105540.0,105530.0,0.65155447]
[1749371968810,0.35994953,105540.0,105530.0,0.65820791]
[1749371969006,0.35994953,105540.0,105530.0,0.65155447]
[1749371969213,0.35994953,105540.0,105530.0,0.65820791]
[1749371970948,0.35994953,105540.0,105530.0,0.65155447]
[1749371971185,0.35994953,105540.0,105530.0,0.65820791]
[1749371971393,0.35994953,105540.0,105530.0,0.65155447]
[1749371971610,0.35994953,105540.0,105530.0,0.65820791]
[1749371972231,0.35994953,105540.0,105530.0,0.65155447]
[1749371972441,0.35994953,105540.0,105530.0,0.65820791]
[1749371972860,0.35994953,105540.0,105530.0,0.65155447]
[1749371973134,0.35994953,105540.0,105530.0,0.65820791]
[1749371973335,0.35994953,105540.0,105530.0,0.65821286]
[1749371973555,0.35994953,105540.0,105530.0,0.65155447]
[1749371974180,0.35994953,105540.0,105530.0,0.65821286]
[1749371975163,0.35994953,105540.0,105530.0,0.65155447]
[1749371975374,0.35994953,105540.0,105530.0,0.65821286]
[1749371975585,0.35994953,105540.0,105530.0,0.36535447]
[1749371975801,0.35994953,105540.0,105530.0,0.65821286]
[1749371976291,0.35994953,105540.0,105530.0,0.6582132]
[1749371976723,0.35994953,105540.0,105530.0,0.65155447]
[1749371977210,0.35994953,105540.0,105530.0,0.6582132]
[1749371977413,0.35994953,105540.0,105530.0,0.65155447]
[1749371977632,0.35994953,105540.0,105530.0,0.6582132]
[1749371978287,0.35994953,105540.0,105530.0,0.6419132]
[1749371978807,0.35994953,105540.0,105530.0,0.63525447]
[1749371979655,0.35994953,105540.0,105530.0,0.6419132]
[1749371980003,0.35994953,105540.0,105530.0,0.64191385]
[1749371981526,0.35994899,105540.0,105530.0,0.64191385]
[1749371981794,0.3694238,105540.0,105530.0,0.64191385]
[1749371981925,0.3694238,105540.0,105530.0,0.63525447]
[1749371982727,0.35994899,105540.0,105530.0,0.63525447]
[1749371982941,0.3694238,105540.0,105530.0,0.64191384]
[1749371983598,0.3694238,105540.0,105530.0,0.64191832]
[1749371983801,0.3694238,105540.0,105530.0,0.63525447]
[1749371984046,0.3694238,105540.0,105530.0,0.64191832]
[1749371984231,0.3694238,105540.0,105530.0,0.63525447]
[1749371984457,0.3694238,105540.0,105530.0,0.64191832]
[1749371985583,0.3694238,105540.0,105530.0,0.64191843]
[1749371985803,0.3788987,105540.0,105530.0,0.63525447]
[1749371986024,0.3788987,105540.0,105530.0,0.64191843]
[1749371986248,0.3788987,105540.0,105530.0,0.63525447]
[1749371986469,0.3694238,105540.0,105530.0,0.63525447]
[1749371986671,0.3694238,105540.0,105530.0,0.64191843]
[1749371987325,0.3694238,105540.0,105530.0,0.63525447]
[1749371987984,0.3694238,105540.0,105530.0,0.64191843]
[1749371989364,0.3694238,105540.0,105530.0,0.63525447]
[1749371989566,0.3694238,105540.0,105530.0,0.64191843]
[1749371990222,0.35994899,105540.0,105530.0,0.64191843]
[1749371990383,0.3694238,105540.0,105530.0,0.64191843]
[1749371990588,0.3694238,105540.0,105530.0,0.64191857]
[1749371990788,0.3694238,105540.0,105530.0,0.63525447]
[1749371991686,0.3694238,105540.0,105530.0,0.64191857]
[1749371992545,0.3694238,105540.0,105530.0,0.63525447]
[1749371992747,0.3694238,105540.0,105530.0,0.64191857]
[1749371993127,0.3694238,105540.0,105530.0,0.63525447]
[1749371993359,0.3694238,105540.0,105530.0,0.64191857]
[1749371993987,0.3694238,105540.0,105530.0,0.63525447]
[1749371994373,0.3694238,105540.0,105530.0,0.64191969]
[1749371994577,0.3694238,105540.0,105530.0,0.63525447]
[1749371995021,0.3694238,105540.0,105530.0,0.64191971]
[1749371995469,0.3694238,105540.0,105530.0,0.63525447]
[1749371995872,0.3694238,105540.0,105530.0,0.64191971]
[1749371996110,0.35994899,105540.0,105530.0,0.64191971]
[1749371996287,0.3694238,105540.0,105530.0,0.64191971]
[1749371996957,0.3694238,105540.0,105530.0,0.63525447]
[1749371997182,0.3694238,105540.0,105530.0,0.64191971]
[1749371999985,0.3694238,105540.0,105530.0,0.63525447]
[1749372000201,0.3694238,105540.0,105530.0,0.64191971]
[1749372000424,0.3694238,105540.0,105530.0,0.61935447]
[1749372001735,0.3694238,105540.0,105530.0,0.62601971]
[1749372002354,0.3694238,105540.0,105530.0,0.61935447]
[1749372002594,0.3694238,105540.0,105530.0,0.62601971]
[1749372002798,0.3694238,105540.0,105530.0,0.61935447]
[1749372002997,0.3694238,105540.0,105530.0,0.62601971]
[1749372003508,0.36942371,105540.0,105530.0,0.61935447]
[1749372003727,0.36942371,105540.0,105530.0,0.62601971]
[1749372004143,0.35047445,105540.0,105530.0,0.64201945]
[1749372004350,0.35047445,105540.0,105530.0,0.64201938]
[1749372004557,0.35047436,105540.0,105530.0,0.63535447]
[1749372004760,0.35047436,105540.0,105530.0,0.64201898]
[1749372005179,0.35047436,105540.0,105530.0,0.63535447]
[1749372005392,0.35047436,105540.0,105530.0,0.64201899]
[1749372005812,0.35047436,105540.0,105530.0,0.63535447]
[1749372006017,0.35047436,105540.0,105530.0,0.642019]
[1749372006218,0.35047436,105540.0,105530.0,0.63535447]
[1749372006455,0.35047436,105540.0,105530.0,0.642019]
[1749372006662,0.35047436,105540.0,105530.0,0.63535447]
[1749372006918,0.341,105540.0,105530.0,0.642019]
[1749372007121,0.35047436,105540.0,105530.0,0.63535447]
[1749372007356,0.35047436,105540.0,105530.0,0.642019]
[1749372007548,0.35047436,105540.0,105530.0,0.63535447]
[1749372008450,0.35047436,105540.0,105530.0,0.64201895]
[1749372008627,0.35047436,105540.0,105530.0,0.63535447]
[1749372008777,0.341,105540.0,105530.0,0.63535447]
[1749372008979,0.35047436,105540.0,105530.0,0.63535447]
[1749372009197,0.341,105540.0,105530.0,0.64201895]
[1749372009382,0.341,105540.0,105530.0,0.63535447]
[1749372009639,0.341,105540.0,105530.0,0.64201883]
[1749372009841,0.341,105540.0,105530.0,0.71497631]
[1749372010045,0.341,105540.0,105530.0,0.708312]
[1749372010248,0.341,105540.0,105530.0,0.71497567]
[1749372010557,0.341,105540.0,105530.0,0.71497543]
[1749372011416,0.341,105540.0,105530.0,0.71497537]
[1749372011632,0.341,105540.0,105530.0,0.71497533]
[1749372011883,0.341,105540.0,105530.0,0.71497529]
[1749372012110,0.341,105540.0,105530.0,0.708312]
[1749372012564,0.341,105540.0,105530.0,0.71497528]
[1749372012772,0.341,105540.0,105530.0,0.71497529]
[1749372013215,0.341,105540.0,105530.0,0.708312]
[1749372013472,0.341,105540.0,105530.0,0.71497528]
[1749372013913,0.341,105540.0,105530.0,0.708312]
[1749372014380,0.341,105540.0,105530.0,0.71497528]
[1749372014543,0.341,105540.0,105530.0,0.708312]
[1749372014725,0.341,105540.0,105530.0,0.71497529]
[1749372015129,0.341,105540.0,105530.0,0.71497537]
[1749372015759,0.341,105540.0,105530.0,0.708312]
[1749372016355,0.341,105540.0,105530.0,0.71497537]
[1749372016559,0.341,105540.0,105530.0,0.708312]
[1749372016998,0.341,105540.0,105530.0,0.71497537]
[1749372017356,0.341,105540.0,105530.0,0.708312]
[1749372017557,0.341,105540.0,105530.0,0.71497537]
[1749372017776,0.341,105540.0,105530.0,0.708312]
[1749372017978,0.341,105540.0,105530.0,0.71497537]
[1749372018372,0.341,105540.0,105530.0,0.708312]
[1749372018964,0.341,105540.0,105530.0,0.71497538]
[1749372019169,0.341,105540.0,105530.0,0.708312]
[1749372019370,0.341,105540.0,105530.0,0.71497538]
[1749372019573,0.341,105540.0,105530.0,0.72163876]
[1749372019994,0.341,105540.0,105530.0,0.71497538]
[1749372020203,0.341,105540.0,105530.0,0.72163876]
[1749372020449,0.341,105540.0,105530.0,0.71497538]
[1749372020705,0.341,105540.0,105530.0,0.72163876]
[1749372021577,0.341,105540.0,105530.0,0.71497538]
[1749372023538,0.341,105540.0,105530.0,0.72163871]
[1749372025058,0.341,105540.0,105530.0,0.71497538]
[1749372025468,0.341,105540.0,105530.0,0.72163871]
[1749372027036,0.341,105540.0,105530.0,0.71497538]
[1749372027394,0.341,105540.0,105530.0,0.72163868]
[1749372027804,0.341,105540.0,105530.0,0.72163648]
[1749372027999,0.341,105540.0,105530.0,0.72163644]
[1749372028477,0.341,105540.0,105530.0,0.71497538]
[1749372028662,0.341,105540.0,105530.0,0.72163644]
[1749372028817,0.341,105540.0,105530.0,0.71497538]
[1749372029164,0.341,105540.0,105530.0,0.72163644]
[1749372029587,0.341,105540.0,105530.0,0.72163643]
[1749372029846,0.341,105540.0,105530.0,0.71497538]
[1749372030269,0.001,105540.0,105530.0,0.72163625]
[1749372030481,0.001,105540.0,105530.0,0.72163582]
[1749372030702,0.001,105540.0,105530.0,0.72163569]
[1749372031585,0.001,105540.0,105530.0,0.66487372]
[1749372031791,0.001,105540.0,105530.0,0.65821785]
[1749372031992,0.001,105540.0,105530.0,0.66487372]
[1749372033386,0.001,105540.0,105530.0,0.65821785]
[1749372034138,0.002,105550.0,105540.0,0.21792577]
[1749372034466,0.002,105550.0,105540.0,0.37776861]
[1749372035213,0.002,105550.0,105540.0,0.37776863]
[1749372035411,0.002,105550.0,105540.0,0.37111275]
[1749372036438,0.003,105550.0,105540.0,0.37111275]
[1749372037876,0.003,105550.0,105540.0,0.38751275]
[1749372047395,0.003,105550.0,105540.0,0.37111275]
[1749372050273,0.0192,105550.0,105540.0,0.37111275]
[1749372051023,0.0192,105550.0,105540.0,0.65719275]
[1749372051673,0.02867346,105550.0,105540.0,0.65719275]
[1749372051919,0.38447346,105550.0,105540.0,0.65719275]
[1749372052107,0.38447346,105550.0,105540.0,0.37111275]
[1749372052329,0.40342119,105550.0,105540.0,0.65719284]
[1749372052642,0.58343183,105550.0,105540.0,0.38247948]
[1749372052853,0.58343183,105550.0,105540.0,0.09639948]
[1749372052983,0.57395783,105550.0,105540.0,0.38247948]
[1749372054461,0.38447364,105550.0,105540.0,0.5909308]
[1749372054659,0.38447364,105550.0,105540.0,0.60040525]
[1749372054807,0.39394737,105550.0,105540.0,0.60040525]
[1749372055013,0.41289474,105550.0,105540.0,0.60040525]
[1749372055931,0.40342074,105550.0,105540.0,0.60040525]
[1749372056218,0.41289465,105550.0,105540.0,0.60040525]
[1749372056381,0.39394701,105550.0,105540.0,0.60040525]
[1749372056607,0.40342092,105550.0,105540.0,0.60705788]
[1749372056822,0.40342092,105550.0,105540.0,0.60040525]
[1749372057165,0.40342092,105550.0,105540.0,0.60705783]
[1749372057333,0.39394683,105550.0,105540.0,0.60705774]
[1749372057516,0.39394683,105550.0,105540.0,0.60705727]
[1749372057724,0.39394683,105550.0,105540.0,0.60040525]
[1749372057925,0.38447337,105550.0,105540.0,0.60705705]
[1749372058163,0.39394683,105550.0,105540.0,0.60705705]
[1749372058323,0.39394683,105550.0,105540.0,0.60040525]
[1749372058726,0.39394683,105550.0,105540.0,0.60705685]
[1749372058929,0.39394683,105550.0,105540.0,0.60040525]
[1749372059131,0.39394683,105550.0,105540.0,0.60705685]
[1749372060047,0.38447337,105550.0,105540.0,0.6070569]
[1749372060244,0.38447337,105550.0,105540.0,0.60040525]
[1749372060451,0.38447337,105550.0,105540.0,0.60705717]
[1749372060657,0.38447337,105550.0,105540.0,0.60040525]
[1749372061010,0.38447337,105550.0,105540.0,0.60705634]
[1749372061212,0.39394692,105550.0,105540.0,0.60705634]
[1749372061409,0.39394692,105550.0,105540.0,0.60040525]
[1749372061614,0.38447337,105550.0,105540.0,0.60040525]
[1749372062342,0.38447337,105550.0,105540.0,0.60705746]
[1749372062543,0.38447337,105550.0,105540.0,0.60040525]
[1749372062752,0.38447337,105550.0,105540.0,0.60705746]
[1749372063784,0.035,105550.0,105540.0,0.60040525]
[1749372063971,0.04447346,105550.0,105540.0,0.60040525]
[1749372064149,0.04447346,105550.0,105540.0,0.60705745]
[1749372064366,0.04447346,105550.0,105540.0,0.60040525]
[1749372064760,0.04447346,105550.0,105540.0,0.60705646]
[1749372065479,0.05394701,105550.0,105540.0,0.60705646]
[1749372066167,0.05394701,105550.0,105540.0,0.60040525]
[1749372066613,0.05394701,105550.0,105540.0,0.60705646]
[1749372066816,0.06342074,105550.0,105540.0,0.60040525]
[1749372067025,0.05394701,105550.0,105540.0,0.60040525]
[1749372067235,0.05394701,105550.0,105540.0,0.60705646]
[1749372067650,0.02867346,105550.0,105540.0,0.60040525]
[1749372068214,0.02867346,105550.0,105540.0,0.60705518]
[1749372068417,0.0192,105550.0,105540.0,0.60040525]
[1749372068823,0.0192,105550.0,105540.0,0.60705515]
[1749372069025,0.02867346,105550.0,105540.0,0.60705515]
[1749372069435,0.02867346,105550.0,105540.0,0.60040525]
[1749372069641,0.0192,105550.0,105540.0,0.60705515]
[1749372069849,0.02867346,105550.0,105540.0,0.60705438]
[1749372070261,0.02867346,105550.0,105540.0,0.60040525]
[1749372070482,0.02867337,105550.0,105540.0,0.60705438]
[1749372071152,0.0192,105550.0,105540.0,0.60040525]
[1749372071515,0.0192,105550.0,105540.0,0.60705435]
[1749372071834,0.0192,105550.0,105540.0,0.60705655]
[1749372072948,0.02867337,105550.0,105540.0,0.60705655]
[1749372073292,0.02867337,105550.0,105540.0,0.60040525]
[1749372073293,0.0192,105550.0,105540.0,0.60040525]
[1749372073919,0.0192,105550.0,105540.0,0.60705655]
[1749372074133,0.02867346,105550.0,105540.0,0.60705655]
[1749372074532,0.02867346,105550.0,105540.0,0.60040525]
[1749372074710,0.0192,105550.0,105540.0,0.60040525]
[1749372075051,0.0192,105550.0,105540.0,0.60705655]
[1749372075260,0.0192,105550.0,105540.0,0.60040525]
[1749372075670,0.0192,105550.0,105540.0,0.60705656]
[1749372075962,0.0192,105550.0,105540.0,0.60705833]
[1749372076355,0.0192,105550.0,105540.0,0.60040525]
[1749372076955,0.0192,105550.0,105540.0,0.60705832]
[1749372077165,0.02867346,105550.0,105540.0,0.60040525]
[1749372077338,0.04497346,105550.0,105540.0,0.60705832]
[1749372077740,0.0355,105550.0,105540.0,0.60705832]
[1749372078149,0.02867337,105550.0,105540.0,0.60705832]
[1749372078970,0.02867337,105550.0,105540.0,0.60040525]
[1749372079620,0.02867337,105550.0,105540.0,0.60705833]
[1749372079826,0.02867337,105550.0,105540.0,0.60040525]
[1749372080414,0.02867337,105550.0,105540.0,0.60705833]
[1749372080615,0.0192,105550.0,105540.0,0.60040525]
[1749372080821,0.0192,105550.0,105540.0,0.60705833]
[1749372081018,0.0192,105550.0,105540.0,0.60040525]
[1749372081257,0.0192,105550.0,105540.0,0.60705833]
[1749372081462,0.0192,105550.0,105540.0,0.60705834]
[1749372081677,0.0192,105550.0,105540.0,0.60705835]
[1749372081882,0.0192,105550.0,105540.0,0.60040525]
[1749372082086,0.0192,105550.0,105540.0,0.60705835]
[1749372082486,0.0192,105550.0,105540.0,0.60040525]
[1749372082690,0.02867346,105550.0,105540.0,0.60705835]
[1749372083102,0.02867337,105550.0,105540.0,0.60040525]
[1749372083317,0.02867337,105550.0,105540.0,0.60705835]
[1749372083941,0.0192,105550.0,105540.0,0.60040525]
[1749372084327,0.0192,105550.0,105540.0,0.60705835]
[1749372084679,0.003,105550.0,105540.0,0.60706686]
[1749372084880,0.003,105550.0,105540.0,0.60040525]
[1749372085159,0.003,105550.0,105540.0,0.60706686]
[1749372085333,0.003,105550.0,105540.0,0.66385436]
[1749372085789,0.003,105550.0,105540.0,0.65719275]
[1749372087587,0.003,105550.0,105540.0,0.69509114]
[1749372090295,0.01247346,105550.0,105540.0,0.69509114]
[1749372090733,0.01247337,105550.0,105540.0,0.69509114]
[1749372091178,0.02857337,105550.0,105540.0,0.69509114]
[1749372091356,0.03804692,105550.0,105540.0,0.69509114]
[1749372096010,0.02857337,105550.0,105540.0,0.69509114]
[1749372099518,0.03804683,105550.0,105540.0,0.69509114]
[1749372101759,0.03804683,105550.0,105540.0,0.69375988]
[1749372102844,0.02857337,105550.0,105540.0,0.69375988]
[1749372103489,0.0191,105550.0,105540.0,0.69375988]
[1749372105560,0.003,105550.0,105540.0,0.69375988]
[1749372109657,0.01247337,105550.0,105540.0,0.69375988]
[1749372110867,0.003,105550.0,105540.0,0.69375988]
[1749372111276,0.01247337,105550.0,105540.0,0.69375988]
[1749372112406,0.02194692,105550.0,105540.0,0.69375988]
[1749372112649,0.01247337,105550.0,105540.0,0.69375988]
[1749372114950,0.02194683,105550.0,105540.0,0.69375988]
[1749372115708,0.01247337,105550.0,105540.0,0.69375988]
[1749372116121,0.02194692,105550.0,105540.0,0.69375988]
[1749372121638,0.01247337,105550.0,105540.0,0.69375988]
[1749372122346,0.02194692,105550.0,105540.0,0.69375988]
[1749372124738,0.01247337,105550.0,105540.0,0.69375988]
[1749372125169,0.02176103,105550.0,105540.0,0.69375988]
[1749372131107,0.02176094,105550.0,105540.0,0.69375988]
[1749372131301,0.03123458,105550.0,105540.0,0.69375988]
[1749372131524,0.02176094,105550.0,105540.0,0.69375988]
[1749372132316,0.03123458,105550.0,105540.0,0.69375988]
[1749372132772,0.02176094,105550.0,105540.0,0.69375988]
[1749372133217,0.03123458,105550.0,105540.0,0.69375988]
[1749372133678,0.03123467,105550.0,105540.0,0.69375988]
[1749372133891,0.03123458,105550.0,105540.0,0.69375988]
[1749372134469,0.02176094,105550.0,105540.0,0.69375988]
[1749372134669,0.03123449,105550.0,105540.0,0.69375988]
[1749372135777,0.04070822,105550.0,105540.0,0.69375988]
[1749372136559,0.03123449,105550.0,105540.0,0.69375988]
[1749372136759,0.04070822,105550.0,105540.0,0.69375988]
[1749372136935,0.05018213,105550.0,105540.0,0.69375988]
[1749372137339,0.08238213,105550.0,105540.0,0.40767988]
[1749372137538,0.08238213,105550.0,105540.0,0.69375988]
[1749372138971,0.07290876,105550.0,105540.0,0.69375988]
[1749372139174,0.07290867,105550.0,105540.0,0.69375988]
[1749372139599,0.08238258,105550.0,105540.0,0.69375988]
[1749372140733,0.08238321,105550.0,105540.0,0.69375988]
[1749372140934,0.08238321,105550.0,105540.0,0.63697238]
[1749372142047,0.07290912,105550.0,105540.0,0.63697238]
[1749372142264,0.08238312,105550.0,105540.0,0.63697238]
[1749372147220,0.08238312,105550.0,105540.0,0.64362884]
[1749372148292,0.08238312,105550.0,105540.0,0.63697238]
[1749372148495,0.08238312,105550.0,105540.0,0.64362884]
[1749372148721,0.08238312,105550.0,105540.0,0.63697238]
[1749372148922,0.08238312,105550.0,105540.0,0.64362884]
[1749372149340,0.08238312,105550.0,105540.0,0.64362885]
[1749372149829,0.08238366,105550.0,105540.0,0.63697238]
[1749372150038,0.08238366,105550.0,105540.0,0.64362885]
[1749372150479,0.08238366,105550.0,105540.0,0.63697238]
[1749372150921,0.08238366,105550.0,105540.0,0.64362886]
[1749372152062,0.07290957,105550.0,105540.0,0.64362886]
[1749372152290,0.07290957,105550.0,105540.0,0.65028534]
[1749372152540,0.07290957,105550.0,105540.0,0.64362886]
[1749372152744,0.06343557,105550.0,105540.0,0.65028534]
[1749372152957,0.06343557,105550.0,105540.0,0.64362886]
[1749372153156,0.06343557,105550.0,105540.0,0.65028534]
[1749372153363,0.06343557,105550.0,105540.0,0.64362886]
[1749372153605,0.06343557,105550.0,105540.0,0.65029071]
[1749372153823,0.07290957,105550.0,105540.0,0.64362886]
[1749372154050,0.07290957,105550.0,105540.0,0.6502907]
[1749372154292,0.07290957,105550.0,105540.0,0.64362886]
[1749372154710,0.07290957,105550.0,105540.0,0.6502907]
[1749372154942,0.07290957,105550.0,105540.0,0.65029063]
[1749372155119,0.07290957,105550.0,105540.0,0.65029071]
[1749372155758,0.07290957,105550.0,105540.0,0.64362886]
[1749372156584,0.07290957,105550.0,105540.0,0.65029071]
[1749372157442,0.07290957,105550.0,105540.0,0.65029053]
[1749372157650,0.07290957,105550.0,105540.0,0.64362886]
[1749372158214,0.07290966,105550.0,105540.0,0.64362886]
[1749372158385,0.07290966,105550.0,105540.0,0.65029053]
[1749372158606,0.06343557,105550.0,105540.0,0.65029053]
[1749372158810,0.06343557,105550.0,105540.0,0.64362886]
[1749372159013,0.06343557,105550.0,105540.0,0.65029053]
[1749372160330,0.06343557,105550.0,105540.0,0.64362886]
[1749372160502,0.06343557,105550.0,105540.0,0.65029053]
[1749372161101,0.06343557,105550.0,105540.0,0.64362886]
[1749372161287,0.07290957,105550.0,105540.0,0.64362886]
[1749372161812,0.06343557,105550.0,105540.0,0.64362886]
[1749372161993,0.06343557,105550.0,105540.0,0.65029053]
[1749372162194,0.06343557,105550.0,105540.0,0.64362886]
[1749372162397,0.06343557,105550.0,105540.0,0.65029053]
[1749372162825,0.07290957,105550.0,105540.0,0.65029053]
[1749372163074,0.07290957,105550.0,105540.0,0.64362886]
[1749372163414,0.07290957,105550.0,105540.0,0.65029053]
[1749372165224,0.07290957,105550.0,105540.0,0.64362886]
[1749372166269,0.07290957,105550.0,105540.0,0.65029053]
[1749372166657,0.07290957,105550.0,105540.0,0.64362886]
[1749372166953,0.07290957,105550.0,105540.0,0.65029053]
[1749372167184,0.07290957,105550.0,105540.0,0.64362886]
[1749372171631,0.06343557,105550.0,105540.0,0.64362886]
[1749372172099,0.04743557,105550.0,105540.0,0.64362886]
[1749372172675,0.04743557,105550.0,105540.0,0.65029057]
[1749372172830,0.04743557,105550.0,105540.0,0.65029071]
[1749372173032,0.04743557,105550.0,105540.0,0.64362886]
[1749372173189,0.04743557,105550.0,105540.0,0.65029071]
[1749372173652,0.04743557,105550.0,105540.0,0.64362886]
[1749372173856,0.04743557,105550.0,105540.0,0.65029071]
[1749372174716,0.04743557,105550.0,105540.0,0.64362886]
[1749372174888,0.04743557,105550.0,105540.0,0.65029071]
[1749372175110,0.04743557,105550.0,105540.0,0.64362886]
[1749372175504,0.04743557,105550.0,105540.0,0.65029071]
[1749372177598,0.04743557,105550.0,105540.0,0.64362886]
[1749372177799,0.04743557,105550.0,105540.0,0.65029061]
[1749372178044,0.04743557,105550.0,105540.0,0.64362886]
[1749372178446,0.04743557,105550.0,105540.0,0.65029061]
[1749372179222,0.03796166,105550.0,105540.0,0.65029061]
[1749372179402,0.04743566,105550.0,105540.0,0.64362886]
[1749372179609,0.04743566,105550.0,105540.0,0.65029062]
[1749372179819,0.03796166,105550.0,105540.0,0.65029062]
[1749372180839,0.04743566,105550.0,105540.0,0.65029063]
[1749372181104,0.03796166,105550.0,105540.0,0.65029063]
[1749372181490,0.03796166,105550.0,105540.0,0.64362886]
[1749372181681,0.03796166,105550.0,105540.0,0.65029064]
[1749372182060,0.03796166,105550.0,105540.0,0.65029063]
[1749372182957,0.03796166,105550.0,105540.0,0.65029053]
[1749372183182,0.03796166,105550.0,105540.0,0.64362886]
[1749372183746,0.04743557,105550.0,105540.0,0.64362886]
[1749372183953,0.04743557,105550.0,105540.0,0.65029053]
[1749372184491,0.04743557,105550.0,105540.0,0.64362886]
[1749372184691,0.04743557,105550.0,105540.0,0.65029053]
[1749372185902,0.04743557,105550.0,105540.0,0.65029052]
[1749372187381,0.04743557,105550.0,105540.0,0.65029053]
[1749372188122,0.03796166,105550.0,105540.0,0.64362886]
[1749372188319,0.03796166,105550.0,105540.0,0.65029053]
[1749372188611,0.03796166,105550.0,105540.0,0.64362886]
[1749372188814,0.04743557,105550.0,105540.0,0.64362886]
[1749372189028,0.23691922,105550.0,105540.0,0.33859969]
[1749372189233,0.25321949,105550.0,105540.0,0.64101617]
[1749372189439,0.25321949,105550.0,105540.0,0.6504908]
[1749372189646,0.25321949,105550.0,105540.0,0.65996534]
[1749372189852,0.25321949,105550.0,105540.0,0.65330367]
[1749372190059,0.06373584,105550.0,105540.0,0.66277812]
[1749372190275,0.07320993,105550.0,105540.0,0.66277812]
[1749372190479,0.07320993,105550.0,105540.0,0.66943997]
[1749372191394,0.27216776,105550.0,105540.0,0.65049098]
[1749372191622,0.26269394,105550.0,105540.0,0.65049098]
[1749372191877,0.26269394,105550.0,105540.0,0.64382913]
[1749372192281,0.26269394,105550.0,105540.0,0.65996552]
[1749372192959,0.26269394,105550.0,105540.0,0.37368552]
[1749372193162,0.26269394,105550.0,105540.0,0.66939997]
[1749372193497,0.26269394,105550.0,105540.0,0.38315997]